{"text_format":"1","workbook":"xlsx","n_sheets":1,"sheets":["Part1-Coor"],"not_rendered":{"charts":0,"images":1,"macros":1,"external_links":1,"defined_names":4,"comments":1,"pivot_tables":0},"unopened":[],"bounds":{"document_bytes":16777216,"sheet_cells":100000,"rows_first":2000,"rows_last":500,"rows_between":2000,"halvings":0,"cell_chars":16384,"cell_head_chars":4096},"cells_cut":0,"cells_raw":0,"read":"whole","date_system":"1900"}

{"sheet":"Part1-Coor","index":0,"n_rows":170,"n_cols":23,"rows_kept":170,"cut":false,"hidden":false,"merged":[[132,1,132,6],[132,7,132,9],[133,1,133,6],[133,7,133,9],[134,1,134,6],[134,7,134,9],[166,0,167,12],[169,0,170,12],[156,0,156,12],[157,1,163,11],[147,3,147,4],[143,1,143,4],[143,5,143,9],[143,10,143,11],[145,1,145,2],[145,3,145,4],[145,6,145,7],[140,0,140,12],[141,0,141,12],[135,1,135,6],[135,7,135,9],[136,1,136,6],[136,7,136,9],[77,9,77,10],[118,0,118,12],[120,3,120,6],[121,3,121,4],[121,9,121,10],[122,3,122,4],[122,9,122,10],[129,1,129,6],[129,7,129,9],[128,7,128,9],[130,1,130,6],[130,7,130,9],[131,1,131,6],[131,7,131,9],[124,0,124,12],[126,1,126,6],[126,7,126,9],[127,1,127,6],[127,7,127,9],[128,1,128,6],[72,0,72,12],[74,1,74,7],[74,8,76,8],[74,9,76,10],[74,11,76,11],[75,1,75,2],[75,3,75,4],[75,5,75,6],[75,7,76,7],[65,0,65,12],[68,3,68,4],[68,5,68,7],[68,8,68,11],[56,9,56,10],[57,1,57,3],[57,4,57,5],[57,8,57,10],[60,0,60,12],[62,3,63,4],[62,5,63,7],[62,9,63,12],[52,1,56,2],[53,3,53,4],[53,5,53,10],[54,3,54,4],[54,5,54,10],[55,3,55,4],[55,7,55,10],[49,0,49,12],[52,3,52,4],[41,7,41,8],[41,10,41,11],[35,1,35,3],[35,4,35,9],[35,18,35,20],[37,1,37,3],[37,4,37,9],[39,4,39,8],[31,1,31,3],[31,4,31,6],[31,8,31,10],[33,2,33,3],[33,4,33,6],[33,8,33,10],[27,1,27,3],[27,6,27,7],[29,1,29,3],[29,4,29,7],[20,1,20,3],[20,4,20,6],[21,1,21,3],[21,4,21,5],[21,8,21,10],[0,1,0,4],[0,5,0,12],[2,6,2,10],[3,6,3,10],[4,9,4,12],[5,9,5,10],[5,11,5,12],[14,4,14,5],[15,1,15,2],[15,4,15,5],[15,7,15,10],[7,6,7,10],[10,0,10,6],[10,7,10,9],[13,3,13,4],[13,5,13,7],[13,8,13,9],[13,10,13,12],[4,3,4,4],[6,3,6,4],[8,8,8,11],[8,3,8,4],[17,0,17,12],[19,1,19,3],[19,4,19,11]]}
[null,null,null,null,null,"Annexe financière"]
[]
[null,null,"Fiche Partenaire ",null,null,null,": Identification et budget"]
[]
[null,null,"Acronyme :",null,null,null,null,null,null,null,null,null,null,null,null,null,"Genre","Titre","Catégorie de partenaire","Catégorie budgétaire","Taux de frais",null,"Type unité"]
[null,null,null,null,null,null,null,null,null,null,null,null,null,null,null,"Coût marginal",null,"DR",null,{"$f":"IF(L22=\"Coût marginal\",1,2)","v":2},null,null,"EA "]
[null,null,"Edition (année) :",null,null,null,null,null,null,null,null,null,null,null,null,"Coût complet","Madame","CR","Hôpital / santé",null,null,null,"JE"]
[null,null,null,null,null,null,null,null,null,null,null,null,null,null,null,null,"Monsieur","Pr","Fondation de recherche","Frais forfaitisés","%",null,"ERT"]
[null,null,"Date d'entrée :",null,null,null,null,null,null,null,null,null,null,null,null,null,null,"MC","Divers public","Cat 1",0.04,null,"ERTint"]
[null,null,null,null,null,null,null,null,null,null,null,null,null,null,null,null,null,"PH","Divers privé","Cat 2",0.2,null,"UMR"]
["Responsable scientifique",null,null,null,null,null,null,"Coordinateur du projet :",null,null,null,null,null,null,null,null,null,"PUPH","PME",null,0.4,null,"URA"]
[null,null,null,null,null,null,null,null,null,null,null,null,null,null,null,null,null,"Ingénieur","TPE / Association",null,7.0000000000000007E-2,null,"UPR"]
[null,"Civilité",null,"Prénom ",null,"Nom ",null,null,"Titre ",null,"   Date de naissance (JJ/MM/AAAA)",null,null,null,null,null,null,"Dr","ETI (Entreprise de taille intermédiaire)","Cat 3",0,null,"GDR"]
[null,null,null,null,null,null,null,null,null,null,null,null,null,null,null,null,null,"autre",null,3,0,null,"USR"]
[null,"Tél. ",null,null,"Tél. portable",null,null,"E-mail",null,null,null,null,null,null,null,null,null,null,"Organisme de recherche de droit privé, centre technique",null,null,null,"FRE"]
[null,null,null,null,null,null,null,null,null,null,null,null,null,null,null,null,null,null,"Micro-entreprise ( ≤ 9 employés)",null,null,null,"UMR_A"]
[]
["Identification du partenaire",null,null,null,null,null,null,null,null,null,null,null,null,null,null,null,null,null,"EPST","Etablissements publics à caractère scientifique et technologique ",null,null,"UMR_I"]
[null,null,null,null,null,null,null,null,null,null,null,null,null,null,null,null,null,null,"GIP","Groupements d'intérêt public ",null,null,"INRIA"]
[null,"Nom complet du partenaire (laboratoire / entreprise / …)",null,null,null,null,null,null,null,null,null,null,null,null,null,null,null,null,"Fondation","",null,null,"UMR_F"]
[null,"Sigle du partenaire                         (laboratoire / entreprise / ... )",null,null,null,null,null,null,null,null,null,null,null,null,null,null,null,null,"Université","",null,null,"UMR_N "]
[null,"Selectionner la base de calcul pour l'assiette de l'aide ",null,null,"Coût marginal",null,null,null,{"$f":"IF($E$22=\"\",\"VEUILLEZ SELECTIONNER UNE BASE DE CALCUL POUR LE PARTENAIRE\",E22)","v":"Coût marginal"},null,null,null,null,3,null,null,null,null,"Ecoles françaises à l'étranger ","",null,null,"UMR_T "]
[null,null,null,null,null,null,null,null,null,null,null,null,null,null,null,null,null,null,"Grand établissement","",null,null,"UMR_S"]
[null,null,null,null,null,null,null,null,{"$f":"IF(E24=\"Autre\",\"Préciser : \",\"\")","v":""},null,null,null,null,null,null,null,null,null,"EURL","Entreprise Unipersonnelle à Responsabilité Limitée",null,null,"EMI"]
[null,null,null,null,null,null,null,null,null,null,null,null,null,null,null,null,null,null,"SA","Société Anonyme",null,null,"ERM"]
[null,null,null,null,null,null,null,null,null,null,null,null,null,null,null,null,null,null,"GIE","Groupement d'intérêt économique",null,null,"IFR"]
[null,"Information tutelle :",null,null,null,null,null,null,null,null,null,null,null,null,null,null,null,null,"SEM","Société d'Economie Mixte",null,null,"Autre"]
[null,"Type d'unité : ",null,null,null,null,"Numéro d'unité : ",null,null,null,null,null,null,null,null,null,null,null,"Société civile"]
[null,null,null,null,null,null,null,null,null,null,null,null,null,null,null,null,null,null,"Association",""]
[null,"Tutelle gestionnaire du financement \n                         si le projet est financé :",null,null,null,null,null,null,null,null,null,null,null,null,null,null,null,null,"Etranger",""]
[null,null,null,null,null,null,null,null,null,null,null,null,null,null,null,null,null,null,"Autre"]
[null,"Siret tutelle gestionnaire "]
[]
[]
[]
[null,"Tutelle hébergeante du lieu de réalisation des travaux : "]
[]
[null,"Siret tutelle hébergeante",null,null,null,null,null,null,null,null,null,null,null,null,null,null,null,null,{"$f":"IF(O38=\"Autre\",\"Préciser : \",\"\")","v":""}]
[]
[null,null,null,"Délégation régionale (le cas échéant) : "]
[]
[]
[]
[]
[]
[]
[]
[]
[]
["Identification du bénéficiaire gestionnaire de l'aide"]
[]
[]
[null,"Adresse  \nde la personne\nhabilitée",null,"numéro de rue :"]
[null,null,null,"adresse :"]
[null,null,null,"adresse (suite) :"]
[null,null,null,"code postal :",null,null,"ville : "]
[null,null,null,null,null,null,"cedex : ",null,"pays :"]
[null,"N° Siret :",null,null,null,null,null,null,"Effectif (si entreprise) :"]
[null,null,null,"Code APE : "]
[]
["Personne habilitée à représenter juridiquement l'établissement gestionnaire"]
[null,"Civilité",null,"Prénom ",null,"Nom ",null,null,null,"Fonction"]
[]
[]
[]
["Personne chargée du suivi administratif et financier"]
[]
[null,"Civilité",null,"Prénom ",null,"Nom ",null,null,"E-mail"]
[]
[]
[]
[]
["Demande financière détaillée suite à la sélection du projet"]
[null,null,null,null,null,null,null,null,null,null,null,"_"]
[null,"Personnels",null,null,null,null,null,null,"Equipements (€)","Prestations de services (€)",null,"Autres frais (€)"]
[null,"Permanents",null,"Non permanents\navec financement demandé",null,"Non permanents\nsans financement demandé",null,"Décharge d'enseignement"]
[null,"Coût total (€)","Total personne.  mois","Coût total (€)","Total personne.  mois","Coût total (€)","Total personne.  mois"]
[]
[]
[null,null,null,null,null,{"$f":"IF(AND(N21=TRUE,N22=TRUE),\"\",IF(AND(N21=FALSE,N22=FALSE),\"\",IF(N21=FALSE,\"\",I83*(D78+I78+J78+K78+L78))))","v":""}]
[null,null,null,"Total coûts déclarés (€)",{"$f":"D78+H78+I78+J78+L78","v":0}]
[]
[null,null,null,"Taux d'aide demandé (%)",null,null,null,"Part préciput tutelle gestionnaire (10,5%)",0.105,{"$f":"I83*($D$78+$H$78+$I$78+$J$78+$L$78)","v":0}]
[]
[null,null,null,"Assiette de calcul du préciput* (€)",{"$f":"IF(E81=0,0,(D78+H78+I78+J78+L78)*E83)","v":0},null,null,"Part préciput structure de recherche (3%)",0.03,{"$f":"I85*($D$78+$H$78+$I$78+$J$78+$L$78)","v":0}]
[]
[]
["* Cette assiette permet de calculer la part préciput hébergeur et site dans le cas où la tutelle hébergeante déclarée y serait éligible."]
[]
[null,null,null,null,"Aide allouée (€)",{"$f":"IF(E81=\"\",\"\",(E81+J83+J85)*E83)","v":0}]
[]
[null,null,null,null,"dont",null,"au titre de la facturation interne sur la totalité du projet "]
[null,null,null,null,null,null,"au titre de la facturation entre partenaires sur la totalité du projet "]
[null,null,null,null,null,null,"au titre de la science ouverte"]
[]
[null,null,null,null,null,null,"Part de l'aide dédiée aux prestations de services et des droits de PI (%)",{"$f":"IF(J78=\"\",\"\",J78/F90)","v":""}]
[]
[]
[null,null,null,"Total coûts déclarés (€)",{"$f":"B78+D78+H78+I78+J78+L78","v":0}]
[]
[null,null,null,"Taux d'aide demandé (%)",0,null,null,"Frais de personnel (Max 68%)",0.68,{"$f":"IF(I101>68%,\"MAX 68%\",IF($I$22=\"Coût Complet\",$I$101*($B$78+$D$78+$H$78),0))","v":0}]
[]
[null,null,null,"Assiette de calcul du préciput* (€)",{"$f":"IF(E99=0,0,(D78+H78+I78+J78+L78)*E101)","v":0},null,null,"Autres dépenses(Max 7%)",7.0000000000000007E-2,{"$f":"IF(I103>7%,\"MAX 7%\",IF($I$22=\"Coût Complet\",$I$103*(SUM($I$78:$L$78)),0))","v":0}]
[]
["* Cette assiette permet de calculer la part préciput hébergeur et site dans le cas où la tutelle hébergeante déclarée y serait éligible."]
[]
[null,null,null,null,"Aide demandée (€)",{"$f":"IF(OR(E99=\"\",J101=\"MAX 68%\",J103=\"MAX 7%\"),\"\",(E99+J101+J103)*E101)","v":0}]
[]
[null,null,null,null,"dont",null,"au titre de la facturation interne sur la totalité du projet "]
[null,null,null,null,null,null,"au titre de la facturation entre partenaires sur la totalité du projet "]
[null,null,null,null,null,null,"au titre de la science ouverte"]
[]
[null,null,null,null,null,null,"Part de l'aide dédiée aux prestations de services et des droits de PI (%)",{"$f":"IF(J78=\"\",\"\",J78/F107)","v":""}]
[]
[]
["Nombre d'heures travaillées sur 12 mois : ",null,null,null,null,null,null,null,null,null,null,null,null,null,null,null,"Post doctorant"]
["Le partenaire est-il assujetti à la TVA non récupérable ?",null,null,null,null,null,null,null,null,null,null,null,null,null,null,null,"CDD ingénieur"]
[null,null,null,null,null,null,null,null,null,null,null,null,null,null,null,null,"CDD technicien"]
["Relevé d’identité bancaire (RIB) (en fournir un exemplaire papier ou scanné)"]
[]
[null,null,"Nom de la banque : "]
[null,null,"Code banque : ",null,null,null,null,null,"Code guichet : "]
[null,null,"N° du compte : ",null,null,null,null,null,"Clé RIB :"]
[]
["Autres soutiens financiers sollicités ou obtenus par le partenaire pour le projet",null,null,null,null,null,null,null,null,null,null,null,null,null,null,null,"Stagiaire"]
[null,null,null,null,null,null,null,null,null,null,null,null,null,null,null,null,"Autre"]
[null,"Identification des financeurs (nom, adresse)",null,null,null,null,null,"Nature et objet du financement",null,null,"Montant sollicité","Montant obtenu"]
[]
[]
[]
[]
[]
[]
[]
[]
[]
[]
[null,null,null,null,null,null,null,null,null,"Totaux des autres financements",{"$f":"SUM(K128:K137)","v":0},{"$f":"SUM(L128:L137)","v":0}]
[null,null,null,null,null,null,null,null,null,null,null,null,null,null,"OUI"]
[null,null,null,null,null,null,null,null,null,null,null,null,null,null,"NON"]
["Engagement du partenaire (Les signatures sont à apposer uniquement sur le document papier)"]
["Ayant le pouvoir d'engager juridiquement l'organisme désigné ci-dessus, je déclare:\n- avoir pris connaissance de l'ensemble du présent projet (documents financiers et scientifiques) et du règlement relatif aux modalités d'attribution des aides de l'Agence Nationale de la Recherche, et souscrire aux obligations qui en découlent,\n- m'engager à mettre en oeuvre tous les moyens nécessaires à la réalisation du projet dans les conditions prévues par règlement relatif aux modalités d'attribution des aides de l'Agence Nationale de la Recherche."]
[]
[null,null,null,null,null,"Représentant légal de l'organisme gestionnaire ou toute personne ayant reçu délégation de signature du représentant légal, dans  ce cas préciser \"Pour (qualité du représentant légal) et par délégation\""]
[null,null,null,null,null,null,"Prénom :",null,"Nom :"]
[null,null,null,null,null,null,{"$f":"IF(D63=\"\",\"\",D63)","v":""},null,{"$f":"IF(F63=\"\",\"\",F63)","v":""}]
[]
[null,null,null,null,null,null,"Qualité du signature",null,{"$f":"IF(J63=\"\",\"\",J63)","v":""}]
[]
[null,null,null,null,null,null,"Signature"]
[]
[]
[]
[]
[]
[]
["Commentaires (le cas échéant)"]
[]
[]
[]
[null,null,null,null,null,null,null,null,null,null,null,null,null,null,null,"Oui"]
[null,null,null,null,null,null,null,null,null,null,null,null,null,null,null,"Non"]
[]
[]
[]
[]
["Les informations personnelles transmises dans ces documents sont obligatoires et seront conservées en fichiers par l'ANR ou par la structure support mandatée par elle pour assurer la conduite opérationnelle de l'évaluation et l'administration des dossiers."]
[]
[]
["Conformément à la loi n° 78-17 du 6 janvier 1978 modifiée, relative à l'Informatique, aux Fichiers et aux Libertés, les personnes concernées disposent d'un droit d'accès et de rectification des données personnelles les concernant. Les personnes concernées peuvent exercer ce droit en s'adressant à la structure support, ou l'ANR quand il s’agit d’un programme géré directement par elle (voir coordonnées dans le texte de l’appel à projets)."]